bitfinex-derivatives/quotes_SOLF0:USTF0_20250914
["timestamp","ask_amount","ask_price","bid_price","bid_amount"]
[1757872558453,6.83,248.27,248.2,3.29802106]
[1757872558664,6.83,248.27,248.19,3.29802106]
[1757872559662,6.83,248.27,248.18,3.29802106]
[1757872559866,6.83,248.27,248.17,3.29802106]
[1757872560161,6.83,248.23,248.17,3.29802106]
[1757872560366,6.83,248.23,248.16,3.29802106]
[1757872560667,6.83,248.23,248.15,3.29802106]
[1757872560856,6.83,248.23,248.16,9.75802106]
[1757872561062,1.63485537,248.4,248.16,9.75802106]
[1757872561063,6.83,248.28,248.17,3.29802106]
[1757872561766,1.63485537,248.25,248.17,3.29802106]
[1757872561968,6.83,248.24,248.17,3.29802106]
[1757872562671,6.83,248.24,248.16,9.75802106]
[1757872562860,6.83,248.24,248.16,3.29802106]
[1757872563966,6.83,248.24,248.15,3.29802106]
[1757872564163,6.83,248.24,248.16,3.29802106]
[1757872565163,6.83,248.24,248.15,3.29802106]
[1757872566166,6.83,248.24,248.14,3.29802106]
[1757872567174,6.83,248.24,248.13,3.29802106]
[1757872567972,6.83,248.2,248.11,3.29802106]
[1757872568571,6.83,248.2,248.11,9.75802106]
[1757872568770,6.83,248.2,248.12,3.29802106]
[1757872568971,1.63485537,248.21,248.13,9.75802106]
[1757872569170,1.63485537,248.21,248.13,6.46]
[1757872569570,8.46485537,248.21,248.13,6.46]
[1757872569777,8.46485537,248.21,248.12,3.29802106]
[1757872570375,8.46485537,248.21,248.09,6.46]
[1757872570376,8.46485537,248.21,248.11,3.29802106]
[1757872571174,8.46485537,248.21,248.09,6.46]
[1757872571175,8.46485537,248.21,248.1,3.29802106]
[1757872571374,8.46485537,248.21,248.11,3.29802106]
[1757872572178,8.46485537,248.21,248.09,9.75802106]
[1757872572179,6.73,248.2,248.09,9.75802106]
[1757872572378,1.63485537,248.21,248.09,9.75802106]
[1757872572676,6.73,248.2,248.09,9.75802106]
[1757872572882,1.63485537,248.21,248.09,9.75802106]
[1757872573080,6.73,248.2,248.09,6.46]
[1757872573981,6.73,248.16,248.09,6.46]
[1757872574179,6.73,248.16,248.03,5.31884336]
[1757872574180,6.73,248.16,248.04,3.29802106]
[1757872574375,6.73,248.16,248.03,0.92778]
[1757872574978,39.41,248.16,248.04,6.47]
[1757872580582,6.73,248.14,248.04,6.47]
[1757872581773,6.73,248.08,248.03,0.92778]
[1757872581982,7.77822864,248.09,248.03,0.92778]
[1757872584481,1.04822864,248.06,248.03,0.92778]
[1757872584875,6.73,248.05,248.03,0.92778]
[1757872585677,59.10822864,248.06,248.03,0.92778]
[1757872585879,6.73,248.04,248.03,0.92778]
[1757872587783,7.13,248.04,247.85,3.29802106]
[1757872588079,1.04822864,247.94,247.84,73.02695633]
[1757872588383,1.04822864,247.98,247.86,1.04822864]
[1757872588693,1.04822864,247.98,247.85,6.47]
[1757872588987,6.73,247.97,247.85,6.47]
[1757872589681,6.73,247.93,247.85,6.47]
[1757872589879,1.04822864,247.91,247.85,6.47]
[1757872591579,6.73,247.9,247.79,6.47]
[1757872592783,1.04822864,247.98,247.8,6.47]
[1757872593082,1.04822864,247.95,247.85,6.47]
[1757872594286,6.73,247.94,247.85,6.47]
[1757872594487,7.77822864,247.94,247.85,6.47]
[1757872596178,1.04822864,247.94,247.85,6.47]
[1757872596383,1.04822864,247.98,247.85,6.47]
[1757872596583,6.73,247.99,247.86,1.04822864]
[1757872596787,6.73,247.99,247.9,6.47]
[1757872597579,12.09,248.22,247.92,1.04822864]
[1757872597784,6.73,248.04,247.93,6.47]
[1757872599882,1.04822864,248.06,247.93,6.47]
[1757872600082,1.04822864,247.99,247.88,6.47]
[1757872600389,1.04822864,247.96,247.88,6.47]
[1757872607199,1.04822864,247.98,247.88,6.47]
[1757872609895,6.99,248.02,247.88,6.47]
[1757872610096,1.04822864,247.99,247.88,6.47]
[1757872612504,8.03822864,247.99,247.88,6.47]
[1757872612699,8.03822864,247.96,247.88,6.47]
[1757872612899,1.04822864,247.93,247.88,6.47]
[1757872613095,8.03822864,247.93,247.88,6.47]
[1757872613602,1.04822864,247.93,247.88,6.47]
[1757872613807,8.03822864,247.93,247.84,6.48]
[1757872614803,24.05959561,248.12,247.84,6.48]
[1757872614804,1.04822864,247.94,247.84,9.76992084]
[1757872615000,1.04822864,247.94,247.85,6.48]
[1757872615200,1.04822864,247.97,247.85,7.52822864]
[1757872616006,1.04822864,247.97,247.85,10.81814948]
[1757872616206,1.04822864,247.97,247.86,6.48]
[1757872617102,6.84,247.96,247.86,6.48]
[1757872617302,1.04822864,247.94,247.86,6.48]
[1757872619006,6.84,247.93,247.86,6.48]
[1757872619211,1.04822864,247.91,247.85,3.28992084]
[1757872619404,1.04822864,247.91,247.84,3.28992084]
[1757872620311,1.04822864,247.91,247.83,3.28992084]
[1757872620706,1.04822864,247.91,247.84,6.48]
[1757872620907,6.84,247.92,247.84,6.48]
[1757872622204,6.84,247.96,247.84,9.76992084]
[1757872622399,7.88822864,247.93,247.84,9.76992084]
[1757872622812,6.84,247.99,247.86,3.28992084]
[1757872623104,1.04822864,247.98,247.89,6.48]
[1757872623408,1.04822864,247.98,247.89,9.76992084]
[1757872623905,6.84,247.99,247.89,9.76992084]
[1757872624112,6.84,247.99,247.91,6.48]
[1757872626211,6.84,247.99,247.91,9.76992084]
[1757872626906,6.84,247.99,247.86,1.04822864]
[1757872626907,6.84,248.03,247.92,9.76992084]
[1757872627214,6.84,248.03,247.95,3.28992084]
[1757872627610,6.84,248.03,247.94,3.28992084]
[1757872628112,6.84,248.03,247.95,3.28992084]
[1757872628915,6.84,248.03,247.94,3.28992084]
[1757872629215,6.84,248.03,247.95,3.28992084]
[1757872629406,6.84,248.03,247.91,4.39106336]
[1757872629407,6.84,248.0,247.94,3.28992084]
[1757872629712,1.04822864,247.98,247.93,3.28992084]
[1757872629908,6.84,247.97,247.92,3.28992084]
[1757872630310,1.04822864,247.98,247.92,3.28992084]
[1757872630814,6.84,247.97,247.91,3.28992084]
[1757872631811,7.88822864,247.97,247.91,3.28992084]
[1757872634011,7.88822864,247.97,247.9,3.28992084]
[1757872637415,7.88822864,247.97,247.91,3.28992084]
[1757872638421,1.04822864,247.99,247.92,3.28992084]
[1757872638621,1.04822864,247.99,247.93,3.28992084]
[1757872640113,6.32,248.01,247.94,3.28992084]
[1757872640314,7.36822864,248.01,247.94,3.28992084]
[1757872643126,7.36822864,248.01,247.95,3.28992084]
[1757872643823,6.32,248.01,247.95,3.28992084]
[1757872649826,6.32,248.01,247.97,6.48]
[1757872650735,6.32,248.01,247.9,6.58659504]
[1757872650736,6.32,248.06,247.98,9.79748774]
[1757872650936,6.32,248.06,248.01,3.31748774]
[1757872651136,6.32,248.06,248.02,6.48]
[1757872654040,6.32,248.1,248.0,3.31748774]
[1757872654335,6.32,248.1,247.99,3.31748774]
[1757872655337,6.32,248.1,248.02,3.31748774]
[1757872655737,6.32,248.1,248.0,6.48]
[1757872655738,6.32,248.1,248.01,3.31748774]
[1757872656036,6.32,248.1,248.0,9.79748774]
[1757872658239,6.32,248.1,248.0,9.78723609]
[1757872661444,6.32,248.1,248.0,6.48]
[1757872674355,1.63871221,248.09,248.0,6.48]
[1757872674557,6.73,248.08,248.0,6.48]
[1757872675653,6.73,248.14,248.0,6.48]
[1757872675862,6.73,248.12,248.0,6.48]
[1757872676463,6.73,248.12,248.01,3.30723609]
[1757872676665,6.73,248.12,248.02,6.48]
[1757872677067,6.73,248.12,248.03,6.48]
[1757872677451,6.73,248.12,248.03,9.78723609]
[1757872678358,6.73,248.12,248.04,3.30723609]
[1757872678562,6.73,248.12,248.03,9.78723609]
[1757872678961,6.73,248.12,248.03,6.48]
[1757872679460,6.73,248.12,248.04,6.48]
[1757872680464,6.73,248.12,248.04,9.78723609]
[1757872682061,65.99,248.18,248.05,9.78723609]
[1757872682263,65.99,248.18,248.09,6.48]
[1757872683565,8.36871221,248.22,248.1,3.30723609]
[1757872683767,8.36871221,248.22,248.11,6.48]
[1757872683967,8.36871221,248.22,248.11,9.78723609]
[1757872684369,8.36871221,248.22,248.11,6.48]
[1757872685466,8.36871221,248.22,248.11,9.78723609]
[1757872686665,8.36871221,248.22,248.11,6.48]
[1757872692072,6.73,248.22,248.11,9.78723609]
[1757872692374,6.73,248.22,248.12,6.46]
[1757872692566,270.92,248.25,248.13,9.76723609]
[1757872692766,270.92,248.25,248.14,6.46]
[1757872693172,8.14871221,248.26,248.14,6.46]
[1757872694273,8.14871221,248.26,248.14,9.76723609]
[1757872694473,8.14871221,248.26,248.14,6.46]
[1757872694773,6.51,248.25,248.14,6.46]
[1757872696774,6.51,248.39,248.16,3.30723609]
[1757872697079,6.51,248.34,248.21,6.46]
[1757872699470,1.63871221,248.31,248.21,6.46]
[1757872699673,1.63871221,248.27,248.16,6.46]
[1757872699870,6.51,248.26,248.16,6.46]
[1757872703789,1.04685994,248.23,248.16,6.46]
[1757872704392,6.51,248.26,248.16,6.46]
[1757872704581,1.04685994,248.23,248.16,6.46]
[1757872704986,7.55685994,248.23,248.16,6.46]
[1757872705689,1.04685994,248.2,248.16,6.46]
[1757872707590,1.04685994,248.2,248.1,57.32884603]
[1757872707891,1.04685994,248.2,248.11,6.46]
[1757872711491,1.04685994,248.2,248.12,6.46]
[1757872712294,7.55685994,248.23,248.12,6.46]
[1757872712995,6.51,248.23,248.12,6.46]
[1757872713292,7.55685994,248.23,248.12,6.46]
[1757872713882,7.55685994,248.23,248.14,1.04685994]
[1757872714285,6.51,248.23,248.15,6.46]
[1757872716392,6.51,248.3,248.18,6.46]
[1757872717091,6.51,248.3,248.2,1.04685994]
[1757872717296,6.51,248.3,248.21,6.46]
[1757872723293,6.51,248.3,248.21,7.50685994]
[1757872727505,6.51,248.3,248.21,10.81409603]
[1757872727900,6.51,248.3,248.22,6.46]
[1757872728206,6.51,248.3,248.24,1.04685994]
[1757872728406,6.51,248.3,248.24,4.35409603]
[1757872728804,1.04685994,248.36,248.25,3.30723609]
[1757872729000,6.63,248.35,248.25,9.76723609]
[1757872729407,6.63,248.35,248.25,6.46]
[1757872731999,6.63,248.35,248.25,9.76723609]
[1757872732504,6.63,248.35,248.26,3.30723609]
[1757872732703,6.63,248.35,248.25,9.76723609]
[1757872733105,1.04685994,248.36,248.25,9.76723609]
[1757872733505,6.63,248.35,248.25,9.76723609]
[1757872734001,1.04685994,248.36,248.25,9.76723609]
[1757872734198,6.9,248.35,248.25,9.76723609]
[1757872734404,1.04685994,248.36,248.25,9.76723609]
[1757872735814,6.9,248.35,248.25,9.76723609]
[1757872736213,6.9,248.32,248.24,3.30723609]
[1757872736510,6.9,248.32,248.23,3.30723609]
[1757872739507,1.04685994,248.3,248.23,3.30723609]
[1757872739815,6.9,248.29,248.22,3.30723609]
[1757872741114,6.9,248.29,248.21,9.76723609]
[1757872741314,6.9,248.29,248.21,6.46]
[1757872741612,6.9,248.29,248.21,9.76723609]
[1757872743711,6.9,248.29,248.21,6.46]
[1757872745511,7.94685994,248.33,248.23,6.46]
[1757872745718,7.94685994,248.33,248.23,9.76723609]
[1757872746114,6.9,248.32,248.23,6.46]
[1757872750319,6.9,248.32,248.23,9.76723609]
[1757872750519,6.9,248.32,248.25,1.04685994]
[1757872750716,6.9,248.32,248.26,6.46]
[1757872752421,6.9,248.32,248.24,3.30723609]
[1757872752624,6.9,248.32,248.22,3.30723609]
[1757872752820,6.9,248.32,248.23,3.30723609]
[1757872753024,6.9,248.32,248.22,3.30723609]
[1757872753218,6.9,248.32,248.24,1.04685994]
[1757872753425,6.9,248.32,248.24,4.35409603]
[1757872754726,6.9,248.32,248.25,3.30723609]
[1757872756425,6.9,248.32,248.26,3.30723609]
[1757872756825,6.9,248.32,248.25,1.04685994]
[1757872757125,6.9,248.32,248.25,4.35409603]
[1757872757328,6.9,248.32,248.26,6.47]
[1757872757533,6.9,248.32,248.29,6.47]
[1757872758628,6.9,248.32,248.28,1.04685994]
[1757872758819,6.9,248.32,248.28,7.51685994]
[1757872759026,6.9,248.32,248.29,6.47]
[1757872760727,1.04685994,248.39,248.29,6.47]
[1757872760926,6.38,248.38,248.29,6.47]
[1757872761127,6.38,248.38,248.29,9.77723609]
[1757872761727,6.38,248.39,248.29,9.77723609]
[1757872761927,6.38,248.39,248.29,6.47]
[1757872764929,6.38,248.35,248.29,6.47]
[1757872766130,6.38,248.35,248.28,3.30723609]
[1757872766330,6.38,248.35,248.26,3.30723609]
[1757872769435,6.38,248.33,248.26,3.30723609]
[1757872769632,6.38,248.33,248.24,3.30723609]
[1757872769829,1.63399574,248.3,248.23,3.30723609]
[1757872770132,6.38,248.29,248.21,9.77723609]
[1757872770638,6.38,248.25,248.19,3.30723609]
[1757872770829,6.38,248.25,248.18,3.30723609]
[1757872771736,6.38,248.25,248.17,9.77723609]
[1757872774248,6.38,248.25,248.17,6.47]
[1757872776249,6.38,248.25,248.16,3.30723609]
[1757872776651,6.38,248.23,248.12,4.39106336]
[1757872776942,6.38,248.16,248.01,6.54]
[1757872777148,6.38,248.16,248.03,10.93106336]
[1757872777351,6.38,248.16,248.03,6.54]
[1757872779842,6.38,248.16,248.0,1.63399574]
[1757872779843,1.63399574,248.12,248.0,6.54]
[1757872780144,6.38,248.11,248.0,6.54]
[1757872780542,6.38,248.08,248.0,6.54]
[1757872782349,8.01399574,248.08,247.91,6.75]
[1757872785053,27.87399574,248.08,247.91,6.75]
[1757872787053,8.01399574,248.08,247.91,6.75]
[1757872787851,34.97399574,248.08,247.91,6.75]
[1757872788451,47.45399574,248.08,247.91,6.75]
[1757872788654,8.01399574,248.08,247.91,6.75]
[1757872789151,21.83399574,248.08,247.91,6.75]
[1757872789748,8.01399574,248.08,247.91,6.75]
[1757872789952,6.38,248.08,247.91,6.75]
[1757872790354,18.56,248.08,247.91,6.75]
[1757872790955,6.38,248.08,247.91,6.75]
[1757872791252,31.78,248.08,247.91,6.75]
[1757872791449,6.38,248.08,247.95,6.75]
[1757872793956,6.42,248.08,247.9,8.16399574]
[1757872794351,6.42,248.08,247.91,6.53]
[1757872794952,15.24,248.07,247.91,6.53]
[1757872795249,22.84,248.07,247.91,6.53]
[1757872795455,6.42,248.06,247.91,6.53]
[1757872796558,1.63399574,248.01,247.87,6.53]
[1757872796748,6.42,248.0,247.87,6.53]
[1757872800150,6.42,248.0,247.82,1.63399574]
[1757872800356,6.42,247.96,247.82,6.53]
[1757872800758,6.42,247.96,247.84,6.53]
[1757872802065,6.42,247.96,247.8,6.53]
[1757872802367,6.42,247.93,247.8,6.53]
[1757872802860,1.63399574,247.99,247.83,6.53]
[1757872803066,8.05399574,247.99,247.83,6.53]
[1757872803360,6.42,247.99,247.87,6.53]
[1757872806065,6.42,247.99,247.9,1.63399574]
[1757872806366,6.42,247.99,247.91,6.53]
[1757872807769,6.42,247.99,247.83,3.6295]
[1757872807770,1.63399574,247.99,247.83,6.53]
[1757872807964,6.42,247.98,247.83,6.53]
[1757872808766,14.08,247.98,247.83,6.53]
[1757872809164,21.34,247.98,247.83,6.53]
[1757872809769,6.42,247.98,247.83,6.53]
[1757872810164,6.42,247.96,247.83,6.53]
[1757872810871,1.63399574,247.95,247.83,6.53]
[1757872811172,6.42,247.94,247.8,1.63399574]
[1757872811368,6.42,247.94,247.78,6.53]
[1757872811669,33.84,247.94,247.78,6.53]
[1757872812771,6.39,247.93,247.78,6.53]
[1757872812965,52.58,247.92,247.78,6.53]
[1757872813166,6.39,247.89,247.78,6.53]
[1757872813368,6.39,247.89,247.69,0.70224294]
[1757872813564,6.39,247.89,247.72,8.05399574]
[1757872813769,6.39,247.87,247.73,8.05399574]
[1757872814974,1.63399574,247.9,247.73,8.05399574]
[1757872815180,6.39,247.88,247.73,6.42]
[1757872815679,6.39,247.88,247.68,6.42]
[1757872815984,1.63399574,247.85,247.68,8.05399574]
[1757872816186,6.39,247.83,247.68,6.42]
[1757872816381,6.39,247.81,247.68,6.42]
[1757872817082,6.39,247.81,247.43,12.09]
[1757872817083,6.39,247.76,247.55,6.42]
[1757872817282,6.39,247.73,247.58,6.42]
[1757872817976,31.14,247.72,247.58,6.42]
[1757872818175,6.39,247.71,247.58,6.42]
[1757872818380,6.39,247.71,247.56,1.63399574]
[1757872818578,60.76,247.7,247.56,1.63399574]
[1757872818776,6.39,247.69,247.56,1.63399574]
[1757872818980,16.46,247.68,247.57,6.42]
[1757872819280,37.49,247.69,247.57,8.05399574]
[1757872819682,56.96,247.68,247.57,8.05399574]
[1757872819882,1.63399574,247.72,247.57,6.42]
[1757872820086,35.05,247.71,247.57,6.42]
[1757872820289,6.39,247.71,247.53,6.42]
[1757872820482,6.39,247.69,247.53,8.05399574]
[1757872820683,6.39,247.67,247.53,8.05399574]
[1757872821178,6.39,247.67,247.53,6.42]
[1757872821381,6.39,247.67,247.51,1.63399574]
[1757872821581,6.08,247.66,247.51,1.63399574]
[1757872821785,6.39,247.65,247.51,1.63399574]
[1757872822291,6.39,247.65,247.52,8.05399574]
[1757872824189,6.39,247.65,247.52,6.42]
[1757872824890,7.62,247.64,247.52,6.42]
[1757872825090,6.39,247.65,247.52,6.42]
[1757872825592,7.62,247.64,247.52,6.42]
[1757872825791,1.05217001,247.63,247.52,7.47217001]
[1757872826585,19.84,247.62,247.52,7.47217001]
[1757872826892,1.05217001,247.63,247.52,7.47217001]
[1757872828082,35.92,247.62,247.52,7.47217001]
[1757872828286,46.74,247.62,247.52,7.47217001]
[1757872828485,1.05217001,247.63,247.52,7.47217001]
[1757872828691,57.02,247.62,247.52,7.47217001]
[1757872828891,6.39,247.65,247.52,7.47217001]
[1757872829091,67.83217001,247.64,247.52,7.47217001]
[1757872830392,1.05217001,247.7,247.59,1.05217001]
[1757872830581,82.39,247.69,247.59,1.05217001]
[1757872831083,6.39,247.69,247.57,6.42]
[1757872831284,38.24,247.68,247.59,1.05217001]
[1757872831480,38.24,247.68,247.57,6.42]
[1757872832290,1.05217001,247.67,247.57,6.42]
[1757872832680,75.95217001,247.67,247.57,6.42]
[1757872832884,1.05217001,247.67,247.57,6.42]
[1757872834494,101.3,247.68,247.57,6.42]
[1757872834693,1.05217001,247.67,247.57,6.42]
[1757872834892,6.39,247.66,247.57,6.42]
[1757872836591,107.63,247.66,247.57,6.42]
[1757872836989,6.39,247.66,247.52,6.42]
[1757872837292,1.05217001,247.63,247.52,6.42]
[1757872837704,101.22,247.65,247.44,1.05217001]
[1757872837705,1.05217001,247.57,247.44,1.05217001]
[1757872837996,1.05217001,247.57,247.45,6.42]
[1757872838695,1.05217001,247.54,247.45,6.42]
[1757872839292,1.05217001,247.61,247.48,6.42]
[1757872840088,1.05217001,247.61,247.48,7.47217001]
[1757872842087,1.05217001,247.61,247.48,6.42]
[1757872842497,6.58,247.6,247.48,6.42]
[1757872842690,1.05217001,247.55,247.48,6.42]
[1757872843992,1.05217001,247.52,247.35,6.4]
[1757872844193,1.05217001,247.52,247.37,1.05217001]
[1757872844393,1.05217001,247.49,247.38,6.4]
[1757872844902,1.05217001,247.52,247.41,6.4]
[1757872845903,1.05217001,247.55,247.43,1.05217001]
[1757872846098,1.05217001,247.55,247.44,6.4]
[1757872846804,1.05217001,247.52,247.44,6.4]
[1757872848104,1.05217001,247.53,247.44,6.4]
[1757872850602,15.64,247.52,247.39,6.4]
[1757872850807,7.63217001,247.49,247.39,6.4]
[1757872851407,271.38,247.59,247.39,6.4]
[1757872851408,64.39217001,247.53,247.39,6.4]
[1757872851708,1.05217001,247.53,247.39,6.4]
[1757872852204,7.63217001,247.53,247.39,6.4]
[1757872852604,1.05217001,247.5,247.39,6.4]
[1757872854306,1.05217001,247.55,247.43,1.05217001]
[1757872854502,1.05217001,247.55,247.42,1.05217001]
[1757872854703,1.05217001,247.55,247.43,6.39]
[1757872857710,6.31,247.71,247.46,6.39]
[1757872858014,1.05217001,247.57,247.46,6.39]
[1757872860109,1.05217001,247.61,247.5,6.39]
[1757872860506,7.36217001,247.61,247.5,6.39]
[1757872860907,1.05217001,247.58,247.5,6.39]
[1757872863813,1.05217001,247.61,247.5,7.44217001]
[1757872864013,1.05217001,247.64,247.5,7.44217001]
[1757872865412,6.31,247.69,247.54,1.05217001]
[1757872865618,1.05217001,247.68,247.55,6.39]
[1757872865813,1.05217001,247.67,247.55,6.39]
[1757872866513,1.05217001,247.67,247.55,7.44217001]
[1757872866715,52.55162098,247.76,247.55,10.72650811]
[1757872866716,1.05217001,247.7,247.55,10.72650811]
[1757872866916,1.05217001,247.7,247.56,6.39]
[1757872867217,37.08,247.73,247.59,6.39]
[1757872867218,1.05217001,247.73,247.59,6.39]
[1757872867611,1.05217001,247.73,247.62,6.39]
[1757872868106,52.55162098,247.76,247.62,6.39]
[1757872868311,1.05217001,247.75,247.61,4.33650811]
[1757872868614,1.05217001,247.69,247.63,6.39]
[1757872870810,1.05217001,247.66,247.57,6.39]
[1757872871113,1.05217001,247.66,247.52,1.05217001]
[1757872871114,1.05217001,247.63,247.52,3.2843381]
[1757872871315,1.05217001,247.6,247.52,6.39]
[1757872871515,1.05217001,247.57,247.52,6.39]
[1757872871712,1.05217001,247.57,247.49,6.99]
[1757872872112,1.05217001,247.57,247.49,10.2743381]
[1757872872315,1.05217001,247.57,247.49,6.99]
[1757872873115,1.05217001,247.57,247.49,10.2743381]
[1757872873320,1.05217001,247.57,247.49,6.99]
[1757872875614,7.96217001,247.51,247.43,6.99]
[1757872875819,1.05217001,247.44,247.38,6.99]
[1757872877721,2.74386118,247.49,247.38,6.99]
[1757872878819,6.91,247.48,247.34,6.99]
[1757872879222,11.92386118,247.54,247.34,3.2843381]
[1757872879424,11.92386118,247.54,247.31,5.09444891]
[1757872879425,11.92386118,247.54,247.36,3.2843381]
[1757872879613,2.74386118,247.54,247.38,6.99]
[1757872879820,49.39,247.56,247.38,3.2843381]
[1757872880020,6.91,247.51,247.39,6.99]
[1757872885725,51.69,247.51,247.39,6.99]
[1757872889741,88.22,247.5,247.39,6.99]
[1757872890040,6.91,247.49,247.39,6.99]
[1757872890840,38.32,247.48,247.39,6.99]
[1757872891243,6.91,247.47,247.32,6.99]
[1757872896346,6.91,247.47,247.32,10.2743381]
[1757872896545,6.91,247.47,247.33,6.64]
[1757872896846,6.32,247.58,247.34,6.64]
[1757872897050,102.7,247.57,247.35,6.64]
[1757872897243,6.32,247.56,247.35,6.64]
[1757872898342,6.32,247.56,247.37,9.9243381]
[1757872898645,6.32,247.56,247.39,6.64]
[1757872899242,41.46,247.6,247.41,6.64]
[1757872899243,6.32,247.6,247.41,6.64]
[1757872899642,6.32,247.6,247.42,6.64]
[1757872899942,6.32,247.6,247.46,6.64]
[1757872907859,7.9639951,247.6,247.46,6.64]
[1757872908053,6.95,247.55,247.4,6.71]
[1757872908654,1.6439951,247.48,247.4,6.71]
[1757872908958,8.5939951,247.48,247.4,6.71]
[1757872909354,8.5939951,247.48,247.35,6.71]
[1757872911853,6.95,247.48,247.35,6.71]
[1757872912756,4.33158643,247.46,247.3,6.71]
[1757872912962,6.95,247.45,247.3,3.2843381]
[1757872913162,6.95,247.45,247.31,6.71]
[1757872913460,6.95,247.45,247.32,6.71]
[1757872914457,6.95,247.45,247.32,9.9943381]
[1757872915163,6.95,247.45,247.32,6.71]
[1757872915455,6.95,247.45,247.32,9.9943381]
[1757872915756,6.84,247.45,247.32,9.9943381]
[1757872915961,6.84,247.45,247.32,6.71]
[1757872917160,6.84,247.45,247.3,3.2843381]
[1757872918558,21.1,247.45,247.3,3.2843381]
[1757872918863,6.84,247.45,247.3,3.2843381]
[1757872919063,19.18,247.45,247.3,3.2843381]
[1757872919763,30.9,247.45,247.3,3.2843381]
[1757872920065,6.84,247.45,247.31,6.6]
[1757872920566,6.84,247.45,247.31,9.8843381]
[1757872920766,39.53158643,247.46,247.31,9.8843381]
[1757872920962,6.84,247.45,247.31,9.8843381]
[1757872921361,39.53158643,247.46,247.31,9.8843381]
[1757872921961,6.84,247.45,247.31,9.8843381]
[1757872922163,6.84,247.45,247.29,3.2843381]
[1757872922362,6.84,247.45,247.28,3.2843381]
[1757872923275,6.84,247.45,247.27,3.2843381]
[1757872923566,6.84,247.43,247.27,3.2843381]
[1757872924175,6.84,247.41,247.27,3.2843381]
[1757872924972,15.78,247.41,247.27,3.2843381]
[1757872925273,6.84,247.39,247.27,3.2843381]
[1757872925470,4.33158643,247.4,247.26,9.8843381]
[1757872925778,6.84,247.39,247.26,6.6]
[1757872926167,39.96,247.38,247.21,9.8843381]
[1757872926472,6.84,247.33,247.21,6.6]
[1757872926670,6.84,247.33,247.18,3.2843381]
[1757872926868,6.84,247.33,247.16,9.8843381]
[1757872927066,4.33158643,247.34,247.16,6.6]
[1757872927270,84.44,247.33,247.16,6.6]
[1757872927469,4.33158643,247.28,247.12,3.2843381]
[1757872927666,4.33158643,247.28,247.09,9.8843381]
[1757872927866,6.84,247.27,247.09,9.8843381]
[1757872928076,6.84,247.27,247.09,9.93545009]
[1757872928273,4.33158643,247.28,247.09,9.93545009]
[1757872928475,6.84,247.27,247.09,6.6]
[1757872928874,47.64,247.26,247.09,6.6]
[1757872929077,82.96,247.25,247.09,6.6]
[1757872929379,6.84,247.25,247.05,6.6]
[1757872929567,6.84,247.23,247.05,6.6]
[1757872930173,4.33158643,247.22,247.05,6.6]
[1757872930672,6.84,247.21,247.05,6.6]
[1757872930878,40.22,247.2,247.05,6.6]
[1757872931176,6.84,247.19,247.05,6.6]
[1757872931774,6.34,247.15,247.05,6.6]
[1757872932170,6.34,247.15,246.98,3.33545009]
[1757872932370,6.34,247.15,246.99,6.75]
[1757872932975,6.34,247.15,246.99,8.40046295]